[Event "CCT Chessable Masters Play-In 2025"]
[Site "Online"]
[Date "2025.02.17"]
[Round "1.8"]
[White "Nesterov, Arseniy"]
[Black "Yu, Yangyi"]
[Result "1/2-1/2"]
[ECO "A46"]
[WhiteElo "2591"]
[BlackElo "2715"]
[PlyCount "117"]
[EventDate "2025.02.13"]
[EventType "swiss"]
[EventCountry "NET"]
[TimeControl "600"]
[WhiteClock "0:00:33"]
[BlackClock "0:00:24"]

1. d4 {[%emt 0:00:01]} Nf6 {[%emt 0:00:02]} 2. Nf3 {[%emt 0:00:01]} e6 {[%emt 0:00:05]} 3. Bf4 {[%emt 0:00:13]} c5 {[%emt 0:00:03]} 4. e3 {[%emt 0:00:03]} Be7 {[%emt 0:00:04]} 5. Nbd2 {[%emt 0:01:34]} Nc6 {[%emt 0:00:07]} 6. dxc5 {[%emt 0:00:31]} Bxc5 {[%emt 0:00:04]} 7. a3 {[%emt 0:00:01]} O-O {[%emt 0:00:05]} 8. c4 {[%emt 0:00:18]} a5 {[%emt 0:00:12]} 9. Bd3 {[%emt 0:00:14]} h6 {[%emt 0:00:03]} 10. O-O {[%emt 0:00:06]} b6 {[%emt 0:00:11]} 11. Ne4 {[%emt 0:00:08]} Nxe4 {[%emt 0:00:21]} 12. Bxe4 {[%emt 0:00:01]} Ba6 {[%emt 0:00:06]} 13. Qc2 {[%emt 0:00:12]} Rc8 {[%emt 0:01:11]} 14. Rfd1 {[%emt 0:00:05]} Be7 {[%emt 0:01:20]} 15. Rac1 {[%emt 0:00:12]} b5 {[%emt 0:00:18]} 16. c5 {[%emt 0:00:58]} b4 {[%emt 0:00:12]} 17. Bd6 {[%emt 0:00:29]} Bxd6 {[%emt 0:00:48]} 18. Rxd6 {[%emt 0:00:04]} Qe7 {[%emt 0:00:18]} 19. Bxc6 {[%emt 0:00:24]} Rxc6 {[%emt 0:00:02]} 20. Rxc6 {[%emt 0:00:01]} dxc6 {[%emt 0:00:00]} 21. Qa4 {[%emt 0:00:09]} bxa3 {[%emt 0:00:07]} 22. bxa3 {[%emt 0:00:01]} Qc7 {[%emt 0:00:13]} 23. Nd4 {[%emt 0:00:07]} Rc8 {[%emt 0:00:02]} 24. h3 {[%emt 0:00:15]} e5 {[%emt 0:00:05]} 25. Nf5 {[%emt 0:00:03]} Bd3 {[%emt 0:00:04]} 26. Nd6 {[%emt 0:00:22]} Rb8 {[%emt 0:00:02]} 27. Rd1 {[%emt 0:00:01]} Be2 {[%emt 0:00:11]} 28. Re1 {[%emt 0:00:09]} Bd3 {[%emt 0:00:02]} 29. e4 {[%emt 0:00:17]} Rb2 {[%emt 0:00:14]} 30. Re3 {[%emt 0:00:02]} Ba6 {[%emt 0:00:23]} 31. Rg3 {[%emt 0:00:13]} g6 {[%emt 0:00:04]} 32. Rf3 {[%emt 0:00:07]} Bb5 {[%emt 0:00:07]} 33. Qd1 {[%emt 0:00:01]} Be2 {[%emt 0:00:03]} 34. Qc1 {[%emt 0:00:08]} Qb8 {[%emt 0:00:01]} 35. Qxh6 {[%emt 0:00:30]} Rb1+ {[%emt 0:00:02]} 36. Kh2 {[%emt 0:00:01]} Bxf3 {[%emt 0:00:01]} 37. gxf3 {[%emt 0:00:00]} Qb2 {[%emt 0:00:01]} 38. Qh4 {[%emt 0:00:11]} Qc1 {[%emt 0:00:21]} 39. Qd8+ {[%emt 0:00:06]} Kh7 {[%emt 0:00:09]} 40. Qh4+ {[%emt 0:00:02]} Kg8 {[%emt 0:00:33]} 41. Qd8+ {[%emt 0:00:02]} Kh7 {[%emt 0:00:04]} 42. Qh4+ {[%emt 0:00:02]} Kg7 {[%emt 0:00:09]} 43. Ne8+ {[%emt 0:00:20]} Kf8 {[%emt 0:00:27]} 44. Qh8+ {[%emt 0:00:01]} Ke7 {[%emt 0:00:01]} 45. Qxe5+ {[%emt 0:00:00]} Kd8 {[%emt 0:00:02]} 46. Qc7+ {[%emt 0:00:29]} Kxe8 {[%emt 0:00:02]} 47. Qe5+ {[%emt 0:00:01]} Kf8 {[%emt 0:00:08]} 48. Qh8+ {[%emt 0:00:01]} Ke7 {[%emt 0:00:00]} 49. Qe5+ {[%emt 0:00:00]} Kd7 {[%emt 0:00:03]} 50. Qd6+ {[%emt 0:00:01]} Kc8 {[%emt 0:00:05]} 51. Qxc6+ {[%emt 0:00:01]} Kb8 {[%emt 0:00:00]} 52. Qd6+ {[%emt 0:00:00]} Kc8 {[%emt 0:00:08]} 53. Qc6+ {[%emt 0:00:02]} Kb8 {[%emt 0:00:01]} 54. Qd6+ {[%emt 0:00:00]} Ka7 {[%emt 0:00:05]} 55. Qc7+ {[%emt 0:00:02]} Ka6 {[%emt 0:00:01]} 56. Qc6+ {[%emt 0:00:02]} Ka7 {[%emt 0:00:01]} 57. Qc7+ {[%emt 0:00:00]} Ka8 {[%emt 0:00:01]} 58. Qc8+ {[%emt 0:00:01]} Ka7 {[%emt 0:00:01]} 59. Qc7+ {[%emt 0:00:01]} 1/2-1/2

[Event "CCT Chessable Masters Play-In 2025"]
[Site "Online"]
[Date "2025.02.17"]
[Round "1.9"]
[White "Wei, Yi"]
[Black "Vakhidov, Jakhongir"]
[Result "1-0"]
[ECO "B31"]
[WhiteElo "2755"]
[BlackElo "2546"]
[PlyCount "93"]
[EventDate "2025.02.13"]
[EventType "swiss"]
[EventCountry "NET"]
[TimeControl "600"]
[WhiteClock "0:04:55"]
[BlackClock "0:01:17"]

1. e4 {[%emt 0:00:03]} c5 {[%emt 0:01:07]} 2. Be2 {[%emt 0:00:13]} g6 {[%emt 0:00:23]} 3. d3 {[%emt 0:00:03]} Bg7 {[%emt 0:00:02]} 4. f4 {[%emt 0:00:01]} d5 {[%emt 0:00:01]} 5. Nf3 {[%emt 0:00:14]} dxe4 {[%emt 0:00:10]} 6. dxe4 {[%emt 0:00:01]} Qxd1+ {[%emt 0:00:01]} 7. Bxd1 {[%emt 0:00:01]} Nf6 {[%emt 0:00:01]} 8. Nc3 {[%emt 0:00:16]} Be6 {[%emt 0:00:26]} 9. e5 {[%emt 0:00:40]} Nd5 {[%emt 0:00:01]} 10. Ng5 {[%emt 0:00:04]} Nc6 {[%emt 0:00:12]} 11. Nxe6 {[%emt 0:00:07]} fxe6 {[%emt 0:00:01]} 12. Ne4 {[%emt 0:00:01]} b6 {[%emt 0:00:03]} 13. c3 {[%emt 0:00:06]} h6 {[%emt 0:00:08]} 14. Bg4 {[%emt 0:00:20]} Kf7 {[%emt 0:00:25]} 15. Bd2 {[%emt 0:00:13]} Rad8 {[%emt 0:00:05]} 16. O-O-O {[%emt 0:00:01]} Nc7 {[%emt 0:00:03]} 17. Kc2 {[%emt 0:00:02]} Rhf8 {[%emt 0:00:25]} 18. Rhf1 {[%emt 0:00:02]} Kg8 {[%emt 0:00:01]} 19. g3 {[%emt 0:00:06]} c4 {[%emt 0:01:22]} 20. a4 {[%emt 0:00:10]} Nd5 {[%emt 0:00:02]} 21. Bxe6+ {[%emt 0:00:02]} Kh7 {[%emt 0:00:01]} 22. Bc1 {[%emt 0:00:04]} Nc7 {[%emt 0:00:17]} 23. Rxd8 {[%emt 0:00:01]} Rxd8 {[%emt 0:00:14]} 24. Bxc4 {[%emt 0:00:01]} Rc8 {[%emt 0:00:00]} 25. Be3 {[%emt 0:00:13]} Na5 {[%emt 0:00:07]} 26. Ba2 {[%emt 0:00:06]} Na6 {[%emt 0:00:01]} 27. Kd3 {[%emt 0:00:01]} Nb7 {[%emt 0:00:21]} 28. b4 {[%emt 0:00:04]} Nc7 {[%emt 0:00:01]} 29. Rd1 {[%emt 0:00:05]} g5 {[%emt 0:00:40]} 30. fxg5 {[%emt 0:00:05]} Bxe5 {[%emt 0:00:01]} 31. gxh6 {[%emt 0:00:01]} Kg6 {[%emt 0:00:14]} 32. Ke2 {[%emt 0:00:05]} Nd6 {[%emt 0:00:02]} 33. Bb1 {[%emt 0:00:01]} Kh5 {[%emt 0:00:13]} 34. Nxd6 {[%emt 0:00:05]} exd6 {[%emt 0:00:02]} 35. Bf5 {[%emt 0:00:08]} Rf8 {[%emt 0:00:09]} 36. g4+ {[%emt 0:00:03]} Kh4 {[%emt 0:00:00]} 37. h7 {[%emt 0:00:26]} b5 {[%emt 0:00:01]} 38. Bf2+ {[%emt 0:00:03]} Kg5 {[%emt 0:00:02]} 39. h4+ {[%emt 0:00:01]} Kf6 {[%emt 0:00:03]} 40. a5 {[%emt 0:00:13]} Ne6 {[%emt 0:00:12]} 41. Bxa7 {[%emt 0:00:01]} Nf4+ {[%emt 0:00:09]} 42. Kf3 {[%emt 0:00:03]} Ng6 {[%emt 0:00:01]} 43. Bf2 {[%emt 0:00:01]} Kg7 {[%emt 0:00:01]} 44. a6 {[%emt 0:00:18]} Ne7 {[%emt 0:00:14]} 45. a7 {[%emt 0:00:02]} Bxc3 {[%emt 0:00:32]} 46. Rxd6 {[%emt 0:00:05]} Bxb4 {[%emt 0:00:06]} 47. Bd4+ {[%emt 0:00:03]} 1-0

[Event "CCT Chessable Masters Play-In 2025"]
[Site "Online"]
[Date "2025.02.17"]
[Round "1.10"]
[White "Bjerre, Jonas Buhl"]
[Black "Andreikin, Dmitry"]
[Result "0-1"]
[ECO "B80"]
[WhiteElo "2640"]
[BlackElo "2695"]
[PlyCount "86"]
[EventDate "2025.02.13"]
[EventType "swiss"]
[EventCountry "NET"]
[TimeControl "600"]
[WhiteClock "0:01:37"]
[BlackClock "0:02:47"]

1. e4 {[%emt 0:00:01]} c5 {[%emt 0:00:02]} 2. Nf3 {[%emt 0:00:00]} e6 {[%emt 0:00:01]} 3. g3 {[%emt 0:00:07]} Nc6 {[%emt 0:00:05]} 4. Bg2 {[%emt 0:00:02]} Nf6 {[%emt 0:00:01]} 5. Nc3 {[%emt 0:00:00]} d6 {[%emt 0:00:22]} 6. d4 {[%emt 0:00:02]} cxd4 {[%emt 0:00:03]} 7. Nxd4 {[%emt 0:00:01]} Bd7 {[%emt 0:00:07]} 8. Ndb5 {[%emt 0:00:07]} Qb8 {[%emt 0:00:04]} 9. a4 {[%emt 0:00:01]} Be7 {[%emt 0:00:17]} 10. O-O {[%emt 0:00:02]} O-O {[%emt 0:00:02]} 11. Be3 {[%emt 0:00:02]} Rc8 {[%emt 0:00:31]} 12. h3 {[%emt 0:00:11]} Ne5 {[%emt 0:00:15]} 13. Na3 {[%emt 0:00:09]} Bc6 {[%emt 0:00:21]} 14. Qe2 {[%emt 0:00:21]} b6 {[%emt 0:00:11]} 15. Rfd1 {[%emt 0:00:11]} Qb7 {[%emt 0:00:06]} 16. Bf4 {[%emt 0:00:28]} h5 {[%emt 0:00:05]} 17. Nab5 {[%emt 0:00:13]} Qb8 {[%emt 0:00:08]} 18. Bg5 {[%emt 0:00:59]} a6 {[%emt 0:00:22]} 19. Nd4 {[%emt 0:00:25]} Bb7 {[%emt 0:00:02]} 20. Rab1 {[%emt 0:00:51]} Qc7 {[%emt 0:00:29]} 21. Bxf6 {[%emt 0:00:06]} Bxf6 {[%emt 0:00:01]} 22. Qxh5 {[%emt 0:00:01]} Nc4 {[%emt 0:00:09]} 23. Nce2 {[%emt 0:00:15]} Qc5 {[%emt 0:00:12]} 24. Qf3 {[%emt 0:00:21]} b5 {[%emt 0:00:11]} 25. Qb3 {[%emt 0:00:26]} Na5 {[%emt 0:00:47]} 26. Qd3 {[%emt 0:00:11]} bxa4 {[%emt 0:00:11]} 27. b4 {[%emt 0:00:34]} axb3 {[%emt 0:00:02]} 28. cxb3 {[%emt 0:00:01]} Qb6 {[%emt 0:00:13]} 29. Qd2 {[%emt 0:00:25]} Nc6 {[%emt 0:00:07]} 30. Nxc6 {[%emt 0:00:03]} Rxc6 {[%emt 0:00:00]} 31. Nf4 {[%emt 0:00:10]} Rac8 {[%emt 0:00:04]} 32. Nh5 {[%emt 0:00:03]} Be5 {[%emt 0:00:03]} 33. Rdc1 {[%emt 0:00:25]} g6 {[%emt 0:00:23]} 34. Rxc6 {[%emt 0:00:18]} Qxc6 {[%emt 0:00:01]} 35. Qg5 {[%emt 0:00:04]} Qc2 {[%emt 0:00:09]} 36. Rf1 {[%emt 0:00:02]} Bxe4 {[%emt 0:00:09]} 37. Nf4 {[%emt 0:00:20]} Bxg2 {[%emt 0:00:04]} 38. Kxg2 {[%emt 0:00:03]} Qe4+ {[%emt 0:00:06]} 39. Kh2 {[%emt 0:00:08]} Bxf4 {[%emt 0:00:18]} 40. gxf4 {[%emt 0:00:00]} Kg7 {[%emt 0:00:15]} 41. h4 {[%emt 0:00:00]} Rc5 {[%emt 0:00:05]} 42. Qg3 {[%emt 0:00:03]} Rf5 {[%emt 0:00:03]} 43. Rd1 {[%emt 0:00:11]} Rxf4 {[%emt 0:00:06]} 0-1

[Event "CCT Chessable Masters Play-In 2025"]
[Site "Online"]
[Date "2025.02.17"]
[Round "1.11"]
[White "Duda, Jan-Krzysztof"]
[Black "Henriquez Villagra, Cristobal"]
[Result "1-0"]
[ECO "E92"]
[WhiteElo "2739"]
[BlackElo "2597"]
[PlyCount "77"]
[EventDate "2025.02.13"]
[EventType "swiss"]
[EventCountry "NET"]
[TimeControl "600"]
[WhiteClock "0:02:34"]
[BlackClock "0:00:51"]

1. d4 {[%emt 0:00:07]} Nf6 {[%emt 0:00:08]} 2. c4 {[%emt 0:00:01]} g6 {[%emt 0:00:04]} 3. Nc3 {[%emt 0:00:01]} Bg7 {[%emt 0:00:01]} 4. e4 {[%emt 0:00:01]} O-O {[%emt 0:00:01]} 5. h3 {[%emt 0:00:03]} d6 {[%emt 0:00:04]} 6. Be3 {[%emt 0:00:02]} Na6 {[%emt 0:00:29]} 7. Nf3 {[%emt 0:00:11]} e5 {[%emt 0:00:07]} 8. d5 {[%emt 0:00:02]} Nc5 {[%emt 0:00:12]} 9. Nd2 {[%emt 0:00:02]} a5 {[%emt 0:00:03]} 10. Be2 {[%emt 0:00:04]} c6 {[%emt 0:00:08]} 11. g4 {[%emt 0:00:12]} a4 {[%emt 0:00:18]} 12. g5 {[%emt 0:00:05]} Nfd7 {[%emt 0:00:03]} 13. h4 {[%emt 0:00:01]} Qa5 {[%emt 0:01:31]} 14. a3 {[%emt 0:00:03]} f5 {[%emt 0:00:15]} 15. h5 {[%emt 0:00:07]} Rd8 {[%emt 0:01:40]} 16. h6 {[%emt 0:00:53]} Bf8 {[%emt 0:00:18]} 17. exf5 {[%emt 0:00:02]} gxf5 {[%emt 0:00:00]} 18. Qc2 {[%emt 0:00:04]} e4 {[%emt 0:00:03]} 19. f4 {[%emt 0:00:30]} Be7 {[%emt 0:00:14]} 20. O-O-O {[%emt 0:00:11]} Nf8 {[%emt 0:00:01]} 21. Kb1 {[%emt 0:00:04]} Bd7 {[%emt 0:00:06]} 22. Rdg1 {[%emt 0:00:24]} Ng6 {[%emt 0:00:05]} 23. Bh5 {[%emt 0:00:08]} Be8 {[%emt 0:00:03]} 24. Nf1 {[%emt 0:00:13]} Qc7 {[%emt 0:00:35]} 25. Ng3 {[%emt 0:00:10]} Qd7 {[%emt 0:00:01]} 26. Bxc5 {[%emt 0:00:13]} dxc5 {[%emt 0:00:01]} 27. Ngxe4 {[%emt 0:00:30]} fxe4 {[%emt 0:00:06]} 28. Bg4 {[%emt 0:00:01]} Qd6 {[%emt 0:00:11]} 29. Be6+ {[%emt 0:00:06]} Kh8 {[%emt 0:00:19]} 30. Nxe4 {[%emt 0:00:10]} Qxf4 {[%emt 0:00:03]} 31. Rf1 {[%emt 0:00:14]} Qe5 {[%emt 0:00:14]} 32. Rf5 {[%emt 0:00:09]} Qd4 {[%emt 0:00:05]} 33. Rd1 {[%emt 0:00:01]} Qe3 {[%emt 0:00:01]} 34. d6 {[%emt 0:00:08]} Nh4 {[%emt 0:00:35]} 35. Re5 {[%emt 0:00:31]} Rxd6 {[%emt 0:00:22]} 36. Bg4 {[%emt 0:01:34]} Rxd1+ {[%emt 0:00:11]} 37. Qxd1 {[%emt 0:00:00]} Ng6 {[%emt 0:00:11]} 38. Re6 {[%emt 0:00:04]} Rd8 {[%emt 0:00:20]} 39. Qxd8 {[%emt 0:00:04]} 1-0

[Event "CCT Chessable Masters Play-In 2025"]
[Site "Online"]
[Date "2025.02.17"]
[Round "1.12"]
[White "Muradli, Mahammad"]
[Black "Martinez Alcantara, Jose Eduardo"]
[Result "1-0"]
[ECO "A35"]
[WhiteElo "2588"]
[BlackElo "2606"]
[PlyCount "69"]
[EventDate "2025.02.13"]
[EventType "swiss"]
[EventCountry "NET"]
[TimeControl "600"]
[WhiteClock "0:03:50"]
[BlackClock "0:03:57"]

1. Nf3 {[%emt 0:00:03]} c5 {[%emt 0:00:02]} 2. c4 {[%emt 0:00:04]} Nc6 {[%emt 0:00:02]} 3. Nc3 {[%emt 0:00:01]} g6 {[%emt 0:00:02]} 4. e3 {[%emt 0:00:01]} Bg7 {[%emt 0:00:01]} 5. d4 {[%emt 0:00:00]} d6 {[%emt 0:00:01]} 6. d5 {[%emt 0:00:05]} Na5 {[%emt 0:00:02]} 7. Bd2 {[%emt 0:00:17]} Nf6 {[%emt 0:00:07]} 8. b3 {[%emt 0:00:07]} O-O {[%emt 0:00:03]} 9. Be2 {[%emt 0:00:04]} e5 {[%emt 0:00:09]} 10. O-O {[%emt 0:00:06]} b6 {[%emt 0:00:01]} 11. e4 {[%emt 0:00:04]} Ne8 {[%emt 0:00:29]} 12. Ne1 {[%emt 0:00:07]} f5 {[%emt 0:00:04]} 13. exf5 {[%emt 0:00:23]} gxf5 {[%emt 0:00:10]} 14. f4 {[%emt 0:00:01]} e4 {[%emt 0:00:09]} 15. Nc2 {[%emt 0:00:08]} a6 {[%emt 0:00:01]} 16. Ne3 {[%emt 0:00:10]} Ra7 {[%emt 0:00:29]} 17. Kh1 {[%emt 0:00:03]} Nf6 {[%emt 0:00:06]} 18. Rg1 {[%emt 0:00:05]} Kh8 {[%emt 0:00:16]} 19. Qc2 {[%emt 0:00:15]} Re7 {[%emt 0:00:17]} 20. Raf1 {[%emt 0:00:34]} Nb7 {[%emt 0:00:02]} 21. Bc1 {[%emt 0:00:07]} Qe8 {[%emt 0:00:03]} 22. Bb2 {[%emt 0:00:01]} Qg6 {[%emt 0:00:42]} 23. Na4 {[%emt 0:00:02]} b5 {[%emt 0:00:01]} 24. Nb6 {[%emt 0:00:02]} h5 {[%emt 0:00:15]} 25. Nxc8 {[%emt 0:00:02]} Rxc8 {[%emt 0:00:00]} 26. h3 {[%emt 0:01:02]} Qh7 {[%emt 0:00:41]} 27. g3 {[%emt 0:00:37]} bxc4 {[%emt 0:00:05]} 28. Bxc4 {[%emt 0:00:37]} Nd8 {[%emt 0:00:01]} 29. Rf2 {[%emt 0:00:04]} Ng8 {[%emt 0:00:56]} 30. Rh2 {[%emt 0:00:18]} Bxb2 {[%emt 0:00:22]} 31. Qxb2+ {[%emt 0:00:00]} Rg7 {[%emt 0:00:00]} 32. g4 {[%emt 0:00:04]} Ne7 {[%emt 0:00:01]} 33. gxf5 {[%emt 0:00:22]} Ng8 {[%emt 0:00:11]} 34. Rhg2 {[%emt 0:00:09]} Rcc7 {[%emt 0:00:12]} 35. f6 {[%emt 0:00:05]} 1-0

[Event "CCT Chessable Masters Play-In 2025"]
[Site "Online"]
[Date "2025.02.17"]
[Round "1.13"]
[White "Nihal Sarin"]
[Black "Lie, Kjetil A."]
[Result "1-0"]
[ECO "B38"]
[WhiteElo "2687"]
[BlackElo "2489"]
[PlyCount "68"]
[EventDate "2025.02.13"]
[EventType "swiss"]
[EventCountry "NET"]
[TimeControl "600"]
[WhiteClock "0:04:38"]
[BlackClock "0:03:03"]

1. d4 {[%emt 0:00:05]} Nf6 {[%emt 0:00:06]} 2. c4 {[%emt 0:00:14]} c5 {[%emt 0:00:03]} 3. Nf3 {[%emt 0:00:03]} g6 {[%emt 0:00:08]} 4. Nc3 {[%emt 0:00:05]} Bg7 {[%emt 0:00:03]} 5. e4 {[%emt 0:00:01]} cxd4 {[%emt 0:00:04]} 6. Nxd4 {[%emt 0:00:00]} O-O {[%emt 0:00:10]} 7. Be2 {[%emt 0:00:06]} Nc6 {[%emt 0:00:01]} 8. Be3 {[%emt 0:00:15]} d6 {[%emt 0:00:01]} 9. O-O {[%emt 0:00:02]} Nxd4 {[%emt 0:00:02]} 10. Bxd4 {[%emt 0:00:00]} Bd7 {[%emt 0:00:01]} 11. h3 {[%emt 0:00:01]} Bc6 {[%emt 0:00:03]} 12. Qc2 {[%emt 0:00:02]} a5 {[%emt 0:00:14]} 13. Rad1 {[%emt 0:00:06]} a4 {[%emt 0:00:07]} 14. Rfe1 {[%emt 0:00:01]} Qa5 {[%emt 0:00:02]} 15. Bf3 {[%emt 0:00:01]} Nd7 {[%emt 0:00:14]} 16. Bxg7 {[%emt 0:00:12]} Kxg7 {[%emt 0:00:01]} 17. Nd5 {[%emt 0:00:00]} Rfe8 {[%emt 0:00:18]} 18. b4 {[%emt 0:00:23]} axb3 {[%emt 0:00:05]} 19. axb3 {[%emt 0:00:00]} Bxd5 {[%emt 0:01:32]} 20. exd5 {[%emt 0:00:00]} Ne5 {[%emt 0:00:17]} 21. Be2 {[%emt 0:00:02]} Qa2 {[%emt 0:00:03]} 22. Qc3 {[%emt 0:00:03]} Qa5 {[%emt 0:00:30]} 23. b4 {[%emt 0:00:17]} Qa3 {[%emt 0:00:01]} 24. Qd4 {[%emt 0:00:24]} Kg8 {[%emt 0:00:09]} 25. c5 {[%emt 0:00:01]} Ra4 {[%emt 0:00:53]} 26. Rb1 {[%emt 0:00:37]} Rc8 {[%emt 0:00:13]} 27. Bb5 {[%emt 0:00:12]} Raa8 {[%emt 0:00:20]} 28. cxd6 {[%emt 0:01:30]} exd6 {[%emt 0:00:08]} 29. f4 {[%emt 0:00:07]} Nf3+ {[%emt 0:00:31]} 30. gxf3 {[%emt 0:00:02]} Qxf3 {[%emt 0:00:01]} 31. Re3 {[%emt 0:00:02]} Qh5 {[%emt 0:00:01]} 32. Rbe1 {[%emt 0:00:03]} h6 {[%emt 0:00:14]} 33. Bd7 {[%emt 0:00:20]} Rd8 {[%emt 0:00:04]} 34. Qf6 {[%emt 0:00:05]} Rf8 {[%emt 0:00:17]} 1-0

[Event "CCT Chessable Masters Play-In 2025"]
[Site "Online"]
[Date "2025.02.17"]
[Round "1.14"]
[White "Smirnov, Pavel"]
[Black "Giri, Anish"]
[Result "0-1"]
[ECO "E60"]
[WhiteElo "2476"]
[BlackElo "2728"]
[PlyCount "74"]
[EventDate "2025.02.13"]
[EventType "swiss"]
[EventCountry "NET"]
[TimeControl "600"]
[WhiteClock "0:03:18"]
[BlackClock "0:04:19"]

1. d4 {[%emt 0:00:02]} Nf6 {[%emt 0:00:02]} 2. c4 {[%emt 0:00:02]} d6 {[%emt 0:00:01]} 3. Nf3 {[%emt 0:00:02]} g6 {[%emt 0:00:01]} 4. g3 {[%emt 0:00:01]} Bg7 {[%emt 0:00:02]} 5. Bg2 {[%emt 0:00:01]} Bf5 {[%emt 0:00:00]} 6. O-O {[%emt 0:00:01]} O-O {[%emt 0:00:01]} 7. Nh4 {[%emt 0:00:06]} Be4 {[%emt 0:00:03]} 8. Nc3 {[%emt 0:00:03]} Bxg2 {[%emt 0:00:01]} 9. Kxg2 {[%emt 0:00:00]} Nbd7 {[%emt 0:00:13]} 10. Nf3 {[%emt 0:00:03]} c5 {[%emt 0:00:16]} 11. e4 {[%emt 0:00:05]} cxd4 {[%emt 0:00:14]} 12. Nxd4 {[%emt 0:00:02]} a6 {[%emt 0:00:03]} 13. Qe2 {[%emt 0:00:10]} Rc8 {[%emt 0:00:02]} 14. a4 {[%emt 0:00:39]} Re8 {[%emt 0:00:20]} 15. Rd1 {[%emt 0:00:04]} Qa5 {[%emt 0:00:24]} 16. Be3 {[%emt 0:01:37]} Ne5 {[%emt 0:00:16]} 17. c5 {[%emt 0:01:14]} dxc5 {[%emt 0:00:12]} 18. Nf3 {[%emt 0:00:08]} Nfg4 {[%emt 0:00:13]} 19. Bf4 {[%emt 0:00:07]} Nxf3 {[%emt 0:00:08]} 20. Qxf3 {[%emt 0:00:02]} Ne5 {[%emt 0:00:00]} 21. Qe2 {[%emt 0:00:02]} Nc6 {[%emt 0:00:25]} 22. e5 {[%emt 0:00:07]} Nd4 {[%emt 0:00:09]} 23. Qe4 {[%emt 0:00:03]} Qb6 {[%emt 0:00:08]} 24. Rab1 {[%emt 0:00:13]} Qc6 {[%emt 0:00:14]} 25. Qxc6 {[%emt 0:00:06]} Rxc6 {[%emt 0:00:19]} 26. b4 {[%emt 0:00:07]} Ne6 {[%emt 0:00:48]} 27. b5 {[%emt 0:00:04]} axb5 {[%emt 0:00:04]} 28. axb5 {[%emt 0:00:25]} Rcc8 {[%emt 0:00:01]} 29. Rd7 {[%emt 0:00:02]} g5 {[%emt 0:00:16]} 30. Be3 {[%emt 0:00:02]} Bxe5 {[%emt 0:00:11]} 31. Nd5 {[%emt 0:00:02]} Rcd8 {[%emt 0:00:04]} 32. Nxe7+ {[%emt 0:00:11]} Kf8 {[%emt 0:00:02]} 33. Rxd8 {[%emt 0:00:01]} Rxd8 {[%emt 0:00:01]} 34. Nf5 {[%emt 0:00:01]} c4 {[%emt 0:00:07]} 35. Rc1 {[%emt 0:00:08]} c3 {[%emt 0:00:04]} 36. Bb6 {[%emt 0:00:11]} Rd5 {[%emt 0:00:08]} 37. Ba5 {[%emt 0:00:28]} Rxb5 {[%emt 0:00:08]} 0-1

[Event "CCT Chessable Masters Play-In 2025"]
[Site "Online"]
[Date "2025.02.17"]
[Round "1.15"]
[White "Mamedyarov, Shakhriyar"]
[Black "Narayanan, Srinath"]
[Result "0-1"]
[ECO "D26"]
[WhiteElo "2731"]
[BlackElo "2516"]
[PlyCount "152"]
[EventDate "2025.02.13"]
[EventType "swiss"]
[EventCountry "NET"]
[TimeControl "600"]
[WhiteClock "0:00:02"]
[BlackClock "0:00:06"]

1. d4 {[%emt 0:00:03]} d5 {[%emt 0:00:03]} 2. c4 {[%emt 0:00:02]} dxc4 {[%emt 0:00:00]} 3. Nf3 {[%emt 0:00:03]} Nf6 {[%emt 0:00:02]} 4. e3 {[%emt 0:00:01]} e6 {[%emt 0:00:00]} 5. Bxc4 {[%emt 0:00:01]} Be7 {[%emt 0:00:01]} 6. O-O {[%emt 0:00:01]} O-O {[%emt 0:00:00]} 7. b3 {[%emt 0:00:00]} c5 {[%emt 0:00:14]} 8. Bb2 {[%emt 0:00:02]} cxd4 {[%emt 0:00:07]} 9. Nxd4 {[%emt 0:00:00]} a6 {[%emt 0:00:09]} 10. Nd2 {[%emt 0:00:06]} b5 {[%emt 0:00:16]} 11. Be2 {[%emt 0:00:01]} Bb7 {[%emt 0:00:01]} 12. Bf3 {[%emt 0:00:01]} Ra7 {[%emt 0:00:06]} 13. Rc1 {[%emt 0:00:02]} Bxf3 {[%emt 0:00:16]} 14. Qxf3 {[%emt 0:00:03]} e5 {[%emt 0:00:23]} 15. Nf5 {[%emt 0:00:02]} Qxd2 {[%emt 0:00:04]} 16. Bxe5 {[%emt 0:00:02]} Qd5 {[%emt 0:00:21]} 17. Nxe7+ {[%emt 0:00:48]} Rxe7 {[%emt 0:00:03]} 18. Qxd5 {[%emt 0:00:00]} Nxd5 {[%emt 0:00:01]} 19. Bd6 {[%emt 0:00:00]} Rb7 {[%emt 0:02:54]} 20. Bxf8 {[%emt 0:00:09]} Kxf8 {[%emt 0:00:00]} 21. Rfd1 {[%emt 0:00:01]} Nb6 {[%emt 0:00:03]} 22. f3 {[%emt 0:01:29]} Ke7 {[%emt 0:00:03]} 23. e4 {[%emt 0:00:01]} N8d7 {[%emt 0:00:14]} 24. Kf2 {[%emt 0:00:01]} g5 {[%emt 0:00:03]} 25. Rc6 {[%emt 0:00:05]} Ne5 {[%emt 0:00:09]} 26. Rh6 {[%emt 0:00:04]} Nbd7 {[%emt 0:00:02]} 27. Rxh7 {[%emt 0:00:17]} Rc7 {[%emt 0:00:03]} 28. Rd2 {[%emt 0:00:00]} Nc5 {[%emt 0:01:05]} 29. h4 {[%emt 0:00:25]} g4 {[%emt 0:00:34]} 30. Rh5 {[%emt 0:00:33]} Ke6 {[%emt 0:00:02]} 31. Rh8 {[%emt 0:00:00]} Ncd3+ {[%emt 0:00:19]} 32. Kg3 {[%emt 0:01:07]} gxf3 {[%emt 0:00:07]} 33. gxf3 {[%emt 0:00:00]} Rc3 {[%emt 0:00:02]} 34. h5 {[%emt 0:00:04]} Nc5 {[%emt 0:00:08]} 35. Kg2 {[%emt 0:00:19]} f6 {[%emt 0:00:27]} 36. h6 {[%emt 0:01:00]} Kf7 {[%emt 0:00:06]} 37. Rdd8 {[%emt 0:01:29]} Ne6 {[%emt 0:00:05]} 38. h7 {[%emt 0:00:06]} Kg7 {[%emt 0:00:50]} 39. Rdg8+ {[%emt 0:00:16]} Kh6 {[%emt 0:00:01]} 40. Rg3 {[%emt 0:00:01]} Nf4+ {[%emt 0:00:01]} 41. Kf2 {[%emt 0:00:01]} Nfg6 {[%emt 0:00:02]} 42. Ra8 {[%emt 0:00:08]} Kxh7 {[%emt 0:00:01]} 43. Ra7+ {[%emt 0:00:00]} Kh6 {[%emt 0:00:01]} 44. Rxa6 {[%emt 0:00:01]} Nd3+ {[%emt 0:00:01]} 45. Ke3 {[%emt 0:00:01]} Nb4+ {[%emt 0:00:03]} 46. Kd2 {[%emt 0:00:06]} Rd3+ {[%emt 0:00:00]} 47. Ke2 {[%emt 0:00:01]} Nf4+ {[%emt 0:00:00]} 48. Kf2 {[%emt 0:00:01]} Nxa6 {[%emt 0:00:01]} 49. Rg4 {[%emt 0:00:00]} Ng6 {[%emt 0:00:01]} 50. Ke2 {[%emt 0:00:01]} Rc3 {[%emt 0:00:01]} 51. f4 {[%emt 0:00:00]} b4 {[%emt 0:00:01]} 52. Kd2 {[%emt 0:00:02]} Nc5 {[%emt 0:00:01]} 53. e5 {[%emt 0:00:00]} fxe5 {[%emt 0:00:01]} 54. f5 {[%emt 0:00:00]} Nf4 {[%emt 0:00:01]} 55. f6 {[%emt 0:00:01]} Ne4+ {[%emt 0:00:00]} 56. Kd1 {[%emt 0:00:00]} Nxf6 {[%emt 0:00:00]} 57. Rh4+ {[%emt 0:00:03]} Kg5 {[%emt 0:00:02]} 58. Rh8 {[%emt 0:00:00]} Ng4 {[%emt 0:00:00]} 59. Rb8 {[%emt 0:00:01]} Ne3+ {[%emt 0:00:01]} 60. Kd2 {[%emt 0:00:00]} Ned5 {[%emt 0:00:01]} 61. Rf8 {[%emt 0:00:16]} Rd3+ {[%emt 0:00:01]} 62. Kc2 {[%emt 0:00:01]} e4 {[%emt 0:00:00]} 63. Rg8+ {[%emt 0:00:08]} Kf5 {[%emt 0:00:01]} 64. Rf8+ {[%emt 0:00:00]} Ke5 {[%emt 0:00:00]} 65. Rc8 {[%emt 0:00:00]} Kd4 {[%emt 0:00:01]} 66. Rc4+ {[%emt 0:00:02]} Ke3 {[%emt 0:00:00]} 67. Rc8 {[%emt 0:00:00]} Rc3+ {[%emt 0:00:01]} 68. Rxc3+ {[%emt 0:00:02]} Nxc3 {[%emt 0:00:00]} 69. a4 {[%emt 0:00:00]} bxa3 {[%emt 0:00:02]} 70. Kxc3 {[%emt 0:00:00]} Nd3 {[%emt 0:00:00]} 71. b4 {[%emt 0:00:01]} Nxb4 {[%emt 0:00:01]} 72. Kb3 {[%emt 0:00:00]} a2 {[%emt 0:00:00]} 73. Kb2 {[%emt 0:00:01]} Kd4 {[%emt 0:00:01]} 74. Kb3 {[%emt 0:00:00]} a1=Q {[%emt 0:00:01]} 75. Kxb4 {[%emt 0:00:00]} Qc3+ {[%emt 0:00:01]} 76. Ka4 {[%emt 0:00:15]} e3 {[%emt 0:00:00]} 0-1